Cogmind - Beta 16 @@@ ROGUE MODE // 2025.12.05 @ 15:38:26 Player: Stavbearer Result: Destroyed by G-47 Trooper with Particle Gun Performance ------------- Evolutions (2) 1000 Regions Visited (4) 800 Robots Destroyed (31) 155 Value Destroyed (790) 790 Prototype IDs (2) 40 Alien Tech Used (0) 0 Bonus (0) 0 TOTAL SCORE: 2785 Bonus ------- None Cogmind --------- Core Integrity 0/550 Matter 205/300 Energy 39/100 System Corruption 0% Temperature Cool (22) Movement Core (150) Ox2 Location -8/Materials Parts ------- > --- POWER (2) -------- (None) > --- PROPULSION (2) --- (None) > --- UTILITY (5) ------ Small Storage Unit Sensor Array Improved Signal Interpreter > --- WEAPON (2) ------- Mini Grenade Launcher > --- INVENTORY (8) ---- Hacking Suite Peak State ------------ > --- POWER ------------ Light Nuclear Core Light Nuclear Core > --- PROPULSION ------- Wheel Wheel > --- UTILITY ---------- Improved Heat Sink Sensor Array Improved Signal Interpreter ECM Suite Hardened Light Armor Plating > --- WEAPON ----------- Precision Beam Rifle Precision Beam Rifle > --- INVENTORY -------- Light Nuclear Core Cesium-ion Thruster Improved VTOL Module Mini Grenade Launcher Mace [Rating: 27] Favorites ----------- Power Light Nuclear Core Engine Ion Engine Power Core Light Nuclear Core Propulsion Wheel Leg Aluminum Leg Wheel Wheel Flight Unit Cesium-ion Thruster Utility Improved Signal Interpreter Device Sensor Array Storage Small Storage Unit Processor Improved Signal Interpreter Protection Light Armor Plating Weapon Precision Beam Rifle Energy Gun Precision Beam Rifle Ballistic Gun Assault Rifle Ballistic Cannon Battle Cannon Launcher Mini Grenade Launcher Impact Weapon Mace Special Melee Weapon Datajack Build | -11 -10 -9 -9 -8 ------- Run | Yrd Mat Mat Min Mat Slots Evolved 4 | . . 2 . 2 Power 1 | . . . . 1 Propulsion . | . . . . . Utility 3 | . . 2 . 1 Weapon . | . . . . . Parts Attached 44 | 6 9 7 11 11 Power 6 | 1 1 1 1 2 Engine 2 | 1 1 . . . Core 4 | . . 1 1 2 Reactor . | . . . . . Propulsion 13 | 2 5 . 4 2 Treads . | . . . . . Leg 6 | . 3 . 2 1 Wheel 6 | 2 2 . 2 . Hover . | . . . . . Flight 1 | . . . . 1 Utility 13 | 1 2 2 3 5 Device 5 | . 1 . 2 2 Storage 3 | 1 . . . 2 Processor 2 | . . 2 . . Hackware . | . . . . . Protection 3 | . 1 . 1 1 Artifact . | . . . . . Weapon 12 | 2 1 4 3 2 Energy Gun 3 | . . 1 1 1 Energy Cannon . | . . . . . Ballistic Gun 5 | 2 . 3 . . Ballistic Cannon 1 | . . . 1 . Launcher 1 | . . . . 1 Special Weapon . | . . . . . Impact Weapon 1 | . . . 1 . Slashing Weapon . | . . . . . Piercing Weapon . | . . . . . Special Melee Weapon 1 | . 1 . . . Unidentified Prototypes 2 | . . 2 . . Parts Lost 21 | . 3 1 5 12 Power 4 | . 1 . 1 2 Propulsion 8 | . 1 1 2 4 Utility 6 | . 1 . 1 4 Weapon 3 | . . . 1 2 Highest Loss Streak 11 | . 2 1 5 11 To Critical Strikes . | . . . . . Average Backups 5 | . 3 7 5 4 Power . | . . 2 1 . Propulsion . | . 2 . . . Utility . | . . 1 1 1 Weapon 1 | . . 1 2 2 Tool/Special . | . . . . . Unused Backups 7 | . 2 2 . 3 Power 2 | . . 2 . . Propulsion 2 | . 1 . . 1 Utility 2 | . 1 . . 1 Weapon 1 | . . . . 1 Tool/Special . | . . . . . Average Slot Usage (%) 95 | . 91 98 96 95 Engine 3 | . 14 . . . Core 10 | . . 10 11 17 Leg 5 | . 12 . 12 . Wheel 15 | . 14 21 7 16 Device 16 | . 3 11 19 26 Storage 6 | . 14 11 2 2 Processor 9 | . . 20 12 9 Protection 4 | . 3 . 8 5 Energy Gun 6 | . . . . 17 Ballistic Gun 13 | . 27 22 12 . Impact Weapon 1 | . . . 8 . Peak Build Rating 27 | 6 7 20 19 27 Average Rating 16 | 4 6 17 15 24 On Entrance 9 | . 6 7 19 16 Avg Prop Armor Cover (%) 5 | . 3 . 7 . Naked Turns . | . . . . . Heaviest Build 32 | 13 16 17 18 32 Greatest Support 32 | 32 32 26 26 20 Greatest Overweight (x) 7 | . 1 1 4 7 Average Overweight (x) . | . . . . . Largest Inventory Capacity 10 | 8 8 8 8 10 Average Capacity 6 | 6 8 8 5 6 Most Carried 8 | 3 8 8 8 7 Average Carried 5 | 1 3 7 5 4 Final Capacity 8 | 8 8 8 5 8 Final Carried 8 | 3 4 8 5 1 Class Distribution -------------------- 64% | Mutant 35% | Scavenger-Mutant Dominant Class ---------------- Mutant | -10/Materials Mutant | -9/Materials Mutant | -9/Mines Scavenger-Mutant | -8/Materials Resources | -11 -10 -9 -9 -8 ----------- Run | Yrd Mat Mat Min Mat Matter Collected 909 | 158 274 107 254 116 Remotely . | . . . . . Salvage Created 1057 | . 422 107 211 317 Parts 71 | . 28 7 20 16 Haulers Intercepted . | . . . . . Recyclers Shooed 6 | . 5 . . 1 Parts Field Recycled . | . . . . . Retrieved Matter . | . . . . . Parts Self-Destructed . | . . . . . Prevented . | . . . . . Parts Restored . | . . . . . Kills | -11 -10 -9 -9 -8 ------- Run | Yrd Mat Mat Min Mat Combat Hostiles Destroyed 24 | . 9 2 6 7 Guns 22 | . 9 2 6 5 AOE 1 | . . . . 1 Classes Destroyed 9 | . 5 1 1 2 Worker 2 | . 2 . . . Tunneler 2 | . . . 2 . Recycler 1 | . 1 . . . Watcher 2 | . 1 . . 1 Swarmer 8 | . 3 . 3 2 Grunt 12 | . 6 1 2 3 Brawler 2 | . . 1 1 . Duelist 1 | . . . . 1 Sentry 1 | . . . . 1 Best Kill Streak 5 | . 5 2 3 4 Combat Bots Only 5 | . 5 2 3 2 Max Kills in Single Turn 2 | . 2 1 1 1 Gunslinging 1 | . 1 . . . Exploded 1 | . . . . 1 Melee . | . . . . . Uniques/NPCs Destroyed . | . . . . . Combat | -11 -10 -9 -9 -8 -------- Run | Yrd Mat Mat Min Mat Hostile Shots Fired 212 | . 60 3 34 115 Missed 43 | . 12 1 6 24 Hits 169 | . 48 2 28 91 Melee 13 | . . 1 5 7 Projectile 156 | . 48 1 23 84 Critical Strikes 7 | . 1 . . 6 Damage Taken 2483 | . 499 49 353 1582 Core 681 | . 63 . 64 554 Absorbed by Shields . | . . . . . Core Remaining (%) 86 | 100 74 . 84 . Volleys Fired 83 | . 40 3 22 18 Largest 2 | . 2 2 2 2 Hottest 122 | . 40 43 46 122 Shots Fired 153 | . 80 6 33 34 Gun 152 | . 80 6 33 33 Cannon . | . . . . . Launcher 1 | . . . . 1 Special . | . . . . . Kinetic 119 | . 80 6 33 . Thermal 33 | . . . . 33 Explosive 1 | . . . . 1 Electromagnetic . | . . . . . Robot Hit Streak 10 | . 7 5 4 10 Robot Miss Streak 5 | . 5 . 3 3 Penetration Max . | . . . . . Secondary Targets 5 | . 4 . 1 . Max Gunslinging Chain 1 | . 1 . 1 . Shots Hit Robots 99 | . 49 4 19 27 Core Hits 54 | . 26 3 9 16 Critical Kills . | . . . . . Critical Parts Destroyed 1 | . . . . 1 Critical Strikes 3 | . . . . 3 Burn 2 | . . . . 2 Smash 1 | . . . . 1 Melee Attacks 10 | . 3 . . 7 Impact 7 | . . . . 7 Slashing . | . . . . . Piercing . | . . . . . Sneak Attacks 1 | . 1 . . . Combat Hostiles . | . . . . . Follow-up Attacks . | . . . . . Damage Inflicted 1529 | . 516 56 297 660 Guns 1296 | . 516 56 297 427 Cannons . | . . . . . Explosions 111 | . . . . 111 Melee 122 | . . . . 122 Ramming . | . . . . . Kinetic 869 | . 516 56 297 . Thermal 427 | . . . . 427 Explosive 111 | . . . . 111 Electromagnetic . | . . . . . Impact 122 | . . . . 122 Slashing . | . . . . . Piercing . | . . . . . Highest Corruption 6 | . . 1 6 . Average Corruption 4 | . . 1 5 . Corruption Purged . | . . . . . Corruption Blocked . | . . . . . Effects 14 | . . 2 12 . Message Errors 3 | . . 1 2 . Matter Fused 4 | . . 1 3 . Energy Discharges 3 | . . . 3 . Data Loss (minor) 2 | . . . 2 . Data Loss (major) 1 | . . . 1 . Weapon Failures 1 | . . . 1 . Overload Shots . | . . . . . Overflow Damage 25 | . . . . 25 Projectiles . | . . . . . Explosions . | . . . . . Melee 25 | . . . . 25 Knockbacks 2 | . . . . 2 Impact 2 | . . . . 2 Kinetic . | . . . . . Secondary . | . . . . . Self-Inflicted Damage 47 | . . . . 47 Shots 1 | . . . . 1 Rammed . | . . . . . Targets Rammed . | . . . . . Kicked . | . . . . . Crushed . | . . . . . Highest Temperature 471 | . 59 . 6 471 Average Temperature 100 | . 15 . 6 183 Received Heat Transfer 858 | . 222 6 90 540 Effects 4 | . . . . 4 Shutdowns 2 | . . . . 2 Energy Bleed 1 | . . . . 1 Damage (major) 1 | . . . . 1 Siege Activations . | . . . . . Martial Activations . | . . . . . Shielding Activations . | . . . . . Robots Disrupted . | . . . . . Combat Hostiles . | . . . . . Robots Corrupted 1 | . . . . 1 Combat Hostiles 1 | . . . . 1 Parts Fried 1 | . . . . 1 Impact Corruptions 2 | . . . . 2 Robots Melted . | . . . . . Combat Hostiles . | . . . . . Parts Melted . | . . . . . Heat Transferred 1073 | . . . . 1073 Parts Sabotaged . | . . . . . Parts Stolen . | . . . . . Parts Stripped . | . . . . . Power Chain Reactions . | . . . . . Alert | -11 -10 -9 -9 -8 ------- Run | Yrd Mat Mat Min Mat Maximum Alert Level . | . . . . . Low Security (%) 100 | 100 100 100 100 100 Level 1 . | . . . . . Level 2 . | . . . . . Level 3 . | . . . . . Level 4 . | . . . . . Level 5 . | . . . . . High Security . | . . . . . Max Security . | . . . . . Peak Influence 168 | . 168 51 90 58 Initial 29 | . . 29 5 . Average 34 | . 92 12 30 12 Influence Increases 720 | . 285 61 165 209 Destroy 0b10 Robot/C 480 | . 180 40 120 140 Destroy 0b10 Robot/NC 35 | . 20 . 10 5 Destroy Leader 114 | . 42 10 20 42 Successful Hack 38 | . 28 10 . . Disable Machine 15 | . . . 15 . Destroy Structure 8 | . . 1 . 7 Partial Spotted 30 | . 15 . . 15 Influence Decreases 684 | . 214 117 180 173 Entered New Map 52 | . . 42 10 . Time Decay 525 | . 184 75 120 146 Lost Part 107 | . 30 . 50 27 Squads Dispatched 4 | . 1 2 . 1 Investigation 1 | . . . . 1 Extermination . | . . . . . Reinforcement 3 | . 1 2 . . Assault . | . . . . . Garrison . | . . . . . Intercept . | . . . . . Searches Triggered . | . . . . . Construction Impeded . | . . . . . Haulers Reinforced . | . . . . . Active Scanning Responses . | . . . . . Cargo Convoy Interrupts . | . . . . . Stealth | -11 -10 -9 -9 -8 --------- Run | Yrd Mat Mat Min Mat Distress Signals 2 | . . . . 2 Communications Jammed . | . . . . . Distress Signals . | . . . . . Times Spotted 48 | . 17 5 6 20 Peak Tracking Total 7 | . 7 3 3 6 Tactical Retreats 7 | . . . . 7 ECM-based Alert Blocks 12 | . . . . 12 Traps | -11 -10 -9 -9 -8 ------- Run | Yrd Mat Mat Min Mat Traps Triggered 1 | . . . . 1 Indirectly . | . . . . . Trap Hack Attempts . | . . . . . Triggered . | . . . . . Disarmed . | . . . . . Reprogrammed . | . . . . . Reused . | . . . . . Traps Extracted . | . . . . . Installed . | . . . . . Triggered . | . . . . . Machines | -11 -10 -9 -9 -8 ---------- Run | Yrd Mat Mat Min Mat Machines Disabled 1 | . . . 1 . Max in Single Turn 1 | . . . 1 . Machines Repaired . | . . . . . Machines Dismantled . | . . . . . Machines Sabotaged . | . . . . . Overloaded Fab Kills . | . . . . . Hacking | -11 -10 -9 -9 -8 --------- Run | Yrd Mat Mat Min Mat Machines Accessed 8 | . 3 4 . 1 Terminals 6 | . 3 3 . . Fabricators . | . . . . . Repair Stations . | . . . . . Recycling Units . | . . . . . Scanalyzers 2 | . . 1 . 1 Garrison Access . | . . . . . Total Hacks 25 | . 10 12 . 3 Successful 16 | . 6 8 . 2 Failed 9 | . 4 4 . 1 Catastrophic 1 | . . 1 . . Database Lockouts . | . . . . . Manual 1 | . . 1 . . Terminals 19 | . 10 9 . . Fabricators . | . . . . . Repair Stations . | . . . . . Recycling Units . | . . . . . Scanalyzers 6 | . . 3 . 3 Garrison Access . | . . . . . Terminal Hacks 11 | . 6 5 . . Record 1 | . . 1 . . Emergency Access Points 1 | . 1 . . . Locate Traps 3 | . 1 2 . . Dispatch Records 2 | . 1 1 . . Investigation Status 2 | . 1 1 . . Recall Investigation 1 | . 1 . . . Zone Layout 1 | . 1 . . . Fabricator Hacks . | . . . . . Repair Station Hacks . | . . . . . Recycling Unit Hacks . | . . . . . Scanalyzer 5 | . . 3 . 2 Insert Component 2 | . . 1 . 1 Analyze 2 | . . 1 . 1 Retrieve Study 1 | . . 1 . . Garrison Access Hacks . | . . . . . Unauthorized Hacks . | . . . . . Terminals . | . . . . . Fabricators . | . . . . . Repair Stations . | . . . . . Recycling Units . | . . . . . Scanalyzers . | . . . . . Garrison Access . | . . . . . Data Cores Recovered . | . . . . . Used . | . . . . . Hacking Detections 8 | . 3 4 . 1 Full Trace Events 1 | . . . . 1 Feedback Events . | . . . . . Feedback Blocked . | . . . . . Robot Schematics Acquired . | . . . . . Robots Built . | . . . . . Authchips . | . . . . . Time . | . . . . . Total Robot Build Rating . | . . . . . Part Schematics Acquired 2 | . . 1 . 1 Parts Built . | . . . . . Authchips . | . . . . . Time . | . . . . . Total Part Build Rating . | . . . . . Part Studies Acquired . | . . . . . Parts Repaired . | . . . . . Time . | . . . . . Parts Recycled . | . . . . . Recycled Matter . | . . . . . Retrieved Matter . | . . . . . Retrieved Components . | . . . . . Parts Scanalyzed 2 | . . 1 . 1 Part Schematics Acquired 2 | . . 1 . 1 Parts Damaged . | . . . . . Bothacking | -11 -10 -9 -9 -8 ------------ Run | Yrd Mat Mat Min Mat Used RIF Installer . | . . . . . Robots Hacked 1 | . 1 . . . Non-combat 1 | . 1 . . . Combat . | . . . . . Robot Hacks Applied 2 | . 2 . . . parse_system 1 | . 1 . . . no_distress 1 | . 1 . . . Relay Couplers Released . | . . . . . Fabnet Peak Effective % . | . . . . . Robots Rewired . | . . . . . Allies Hacked . | . . . . . Hacks Repelled . | . . . . . Allies | -11 -10 -9 -9 -8 -------- Run | Yrd Mat Mat Min Mat Total Allies . | . . . . . Largest Group . | . . . . . Highest-Rated Group . | . . . . . Highest-Rated Ally . | . . . . . Total Orders . | . . . . . Ally Attacks . | . . . . . Total Damage . | . . . . . Kills . | . . . . . Allies Corrupted . | . . . . . Allies Melted . | . . . . . Intel | -11 -10 -9 -9 -8 ------- Run | Yrd Mat Mat Min Mat Active Infowar (turns) 1451 | . 131 300 365 655 Sensors 1409 | . 131 300 365 613 ECM 946 | . . . 292 654 Robot Analysis Total . | . . . . . Derelict Logs Recovered . | . . . . . Drone Launches . | . . . . . Drone Recoveries . | . . . . . Exploration | -11 -10 -9 -9 -8 ------------- Run | Yrd Mat Mat Min Mat Turns Passed 1860 | 63 450 300 365 682 Spaces Moved 1237 | 53 280 325 262 317 Core 13 | 2 . . 4 7 Treads . | . . . . . Legs 267 | . 121 . 146 . Wheels 956 | 51 159 325 112 309 Hover . | . . . . . Flight 1 | . . . . 1 Fastest Speed 50 | 50 80 80 80 80 Average Speed 96 | 98 104 82 107 96 Slowest Speed 400 | 100 190 95 250 400 Overloaded Moves . | . . . . . Propulsion Burnouts . | . . . . . Robots Hopped . | . . . . . Potential Cave-ins . | . . . . . Cave-ins Triggered . | . . . . . Exploration Rate (%) 31 | 5 55 24 53 20 Regions Visited 4 Branch Regions 1 Pre-discovered Areas . | . . . . . Known Exits Taken 2 | . . 1 1 . Unknown Exits Taken 2 | 1 1 . . . Scrap Searched 1 | . . . 1 . Spaces Dug . | . . . . . Terrain Destroyed 6 | . . . . 6 Melee . | . . . . . Projectile . | . . . . . AOE 6 | . . . . 6 Terrain Rammed . | . . . . . Walls Destroyed . | . . . . . Machines Disabled . | . . . . . Actions | -11 -10 -9 -9 -8 --------- Run | Yrd Mat Mat Min Mat Total 1726 | 61 361 350 309 645 Wait 297 | . 17 2 8 270 Move 1233 | 52 279 324 261 317 Hop . | . . . . . Pick Up 25 | 3 6 7 2 7 Fast Attach 19 | 6 3 2 3 5 Attach 11 | . 1 1 2 7 Detach . | . . . . . Swap 29 | . 7 6 7 9 Drop 19 | . 5 5 4 5 Fire 83 | . 40 3 22 18 Melee 10 | . 3 . . 7 Ram . | . . . . . Kick . | . . . . . Crush . | . . . . . Escape Stasis . | . . . . . Rewire . | . . . . . Trap . | . . . . . Miscellaneous . | . . . . . Route ------- -11/Scrapyard -10/Materials -9/Materials -9/Mines -8/Materials History --------- Turn | Location | Event 6 | -11/Scrapyard | Discovered new exit (range 16) 64 | -11/Scrapyard | Entered Materials 313 | -10/Materials | Build established: Mutant 497 | -10/Materials | Discovered new exit (range 3) 514 | -10/Materials | Entered another Materials area 514 | -9/Materials | Evolved 2 slots: Utility x2 765 | -9/Materials | Discovered new exit (range 16) 813 | -9/Materials | Identified exit to Mines 814 | -9/Materials | Entered Mines 894 | -9/Mines | Lost 5 parts (1p2n1u1w) 978 | -9/Mines | Received a Rocket Launcher from a helpful Derelict 1156 | -9/Mines | Discovered new exit (range 11) 1166 | -9/Mines | A weapon hastily lodged in a ceiling crevice suddenly fell to the ground 1178 | -9/Mines | Identified exit to Materials 1179 | -9/Mines | Entered Materials 1179 | -8/Materials | Evolved 2 slots: Power x1, Utility x1 1465 | -8/Materials | Build established: Scavenger-Mutant 1846 | -8/Materials | Core integrity fell below 50% 1855 | -8/Materials | Core integrity fell below 20% 1861 | -8/Materials | Destroyed by G-47 Trooper with Particle Gun Last Messages --------------- 01840_ H-55 Commando destroyed. 01840_ Destroyed Melee Analysis Suite. 01840_ L-31 Rogue system corrupted by crushing effect. 01840_ L-31 Rogue knocked back. 01843_ Critical hit (Burn: +37). 01849_ L-31 Rogue suffers critical hit (Smash). 01849_ Destroyed Imp. Aluminum Leg. 01849_ L-31 Rogue system corrupted by crushing effect. 01849_ L-31 Rogue knocked back. 01850_ L-31 Rogue system terminally corrupted. 01850_ Imp. Aluminum Leg fried. 01851_ Critical hit (Burn: +37). 01853_ Mace destroyed. 01854_ Acquired Carbon-fiber Leg. 01860_ Prc. Beam Rifle destroyed. 01860_ Carbon-fiber Leg destroyed. 01861_ Y-45 Defender destroyed. [Achievement: Resistances Are Futile] Map ----- +----------------------------------------------------+ | ???????????????????????????????????# #??# | | ???????????????????????????????????# #??# | | ???????????????????????????????????# #??# | | ?????????????????????????????####### #??# #### | | ?????????????????????????????# # #??# # [ | | ?????????????????????????????# [# #??#% # | | ?????????????????????????????# # #### # | | ?????????????????????????????# """ # # | | ?????????????????????????????# """ / + S | | ?????????????????????????????# """ # %#="" | | ??????????? ????????????????# ### ## " | | ?????????? ???????????????# #?# ## | | ??????????? ##?????????????# """ #?# ^^ ##### | | ???????????? ?????????????# "Y #?#^ #???? | | ????????????? ????????????# """ ### #???? | | ?????????????! ????????????# + #???? | | ????????????? ???????????############### #???? | | ?????????????""" ?????????????????????????# #???? | | ?????????????"""" ?##########?????????????# #???? | | ????????????""""" ?# #############?# #???? | | ????????????""""" # """ + + ###+##### | | ?????????# """ # """ " ## # """ # | | ?????????# %+ " ## # """ #= """"" | | ?????????# #! g ## # """ # """"" | | ?????????# ###### # ## # # """"" | | ??????????????????#?# [g@ ## # """ # """"" | | ????????????????????# =%! =# + """ # """"" | | ????????????????????# !g[ # # """ #! """"" | | ????????????????????# # ## # # """"" | | ??????????????????? #######/## | | ??????????????????# ###?###### #???# ##+###### | | ??????????????????#??????????# #???# %% | | ?????????????????????????????# #???# | | ?????????????????????????????# #???# ] % """" | | ?????????????????????????????# #???# ]] """" | | ?????????????????????????????# ????# ]% """" | | ????????????????????????????? ????# | | ????????????????????????????? | | ????????????????????????????# ########+# | | ????????????????????????????# ##+#####??# | | ????????????????????????????####?# ???????# | | ?????????????????????????????????# ????????# """ | | ?????????????????????????????????#?????????# """ | | ???????????????????????????????????????????# """ | | ???????????????????????????????????????????# | | ???????????????????????????????????????????####### | | ?????????????????????????????????????????????????? | | | | | | | +----------------------------------------------------+ Best States ------------- Heat Dissipation 55 Energy Generation 23 Energy Capacity 250 Matter Stores 300 Matter Capacity 300 Sight Range 16 Robot Scan Range 14 Terrain Scan Density 10 ECM Strength 1 Armor Coverage 150 Evasion (%) 55 Item Schematics ----------------- Prc. Beam Rifle | -9/Materials | Scanalyzed Rocket Launcher | -8/Materials | Scanalyzed Robot Schematics ------------------ None Fabricated ------------ Nothing Repaired ---------- Nothing Studied --------- None Alien Tech Used ----------------- None Achievements -------------- Junior Dev Resistances Are Futile Challenges ------------ None Game ------ Seed SpectralSpectralProjector Manual? 0 Play Time 00:46:35 Cumulative 26.3 hours Start 2025.12.05 @ 14:49:36 End 2025.12.05 @ 15:38:26 Sessions 1 Manual Loads 0 Difficulty Rogue Special Mode None Game No. 24 Rogue 24 Adventurer 0 Explorer 0 Win Type - Total 0 Types 0/0/0/0/0/0/0/0/0/0 Lore% 11 Gallery% 23 Achievement% 13 Wizard Run 0 Options --------- Layout 2 ASCII 0 Keyboard 1 Movement Vi Keybinds 0 Fullscreen 2 Font 24/Smallcaps Map View 50x44 Zoom Use 0% Tactical HUD 1 Map Filters NONE Filters NONE Steam 1 RUN: e4bbdd7b-3ed0-42e3-98d1-3a895a7acdc3